[Event "Titled Tuesday Blitz November 14 Early 2023"]
[White "Statham_l3"]
[Black "Marcziter, Dmitrii"]
[BlackFideId "13900765"]
[WhiteElo "2551"]
[BlackElo "2408"]
[Result "1-0"]
[Round "6"]
[TimeControl "180+1"]
[Date "2023.11.14"]
[WhiteClock "0:00:05"]
[BlackClock "0:00:30"]
[Board "126"]

1. e4 {[%clk 0:03:00]}  e5 {[%clk 0:02:58]} 2. Nf3 {[%clk 0:02:59]}  Nc6 {[%clk 0:02:58]} 3. c3 {[%clk 0:03:00]}  Nf6 {[%clk 0:02:46]} 4. d4 {[%clk 0:03:00]}  d5 {[%clk 0:02:33]} 5. Bb5 {[%clk 0:02:58]}  Nxe4 {[%clk 0:02:31]} 6. Nxe5 {[%clk 0:02:57]}  Bd7 {[%clk 0:02:31]} 7. Bxc6 {[%clk 0:02:58]}  bxc6 {[%clk 0:02:31]} 8. O-O {[%clk 0:02:58]}  Be7 {[%clk 0:02:25]} 9. f3 {[%clk 0:02:58]}  Nd6 {[%clk 0:02:18]} 10. Nd2 {[%clk 0:02:37]}  O-O {[%clk 0:02:16]} 11. f4 {[%clk 0:02:37]}  f6 {[%clk 0:02:16]} 12. Nxd7 {[%clk 0:02:34]}  Qxd7 {[%clk 0:02:16]} 13. Qf3 {[%clk 0:02:20]}  Nf5 {[%clk 0:02:09]} 14. g4 {[%clk 0:02:10]}  Nd6 {[%clk 0:02:03]} 15. f5 {[%clk 0:02:03]}  Rfe8 {[%clk 0:02:01]} 16. Nb3 {[%clk 0:01:59]}  Ne4 {[%clk 0:01:59]} 17. Bf4 {[%clk 0:01:59]}  Bd6 {[%clk 0:01:58]} 18. Rae1 {[%clk 0:01:57]}  a5 {[%clk 0:01:55]} 19. Nd2 {[%clk 0:01:48]}  Nxd2 {[%clk 0:01:45]} 20. Bxd2 {[%clk 0:01:45]}  a4 {[%clk 0:01:42]} 21. h4 {[%clk 0:01:30]}  a3 {[%clk 0:01:40]} 22. b4 {[%clk 0:01:08]}  Rxe1 {[%clk 0:01:39]} 23. Rxe1 {[%clk 0:01:04]}  Re8 {[%clk 0:01:39]} 24. Rxe8+ {[%clk 0:00:53]}  Qxe8 {[%clk 0:01:35]} 25. Kf2 {[%clk 0:00:34]}  Qe7 {[%clk 0:01:25]} 26. Qe3 {[%clk 0:00:31]}  Kf7 {[%clk 0:01:22]} 27. Qxe7+ {[%clk 0:00:26]}  Kxe7 {[%clk 0:01:20]} 28. Bc1 {[%clk 0:00:27]}  g6 {[%clk 0:01:14]} 29. Bxa3 {[%clk 0:00:23]}  gxf5 {[%clk 0:01:13]} 30. gxf5 {[%clk 0:00:24]}  Bf4 {[%clk 0:01:12]} 31. b5+ {[%clk 0:00:13]}  Kd7 {[%clk 0:01:04]} 32. bxc6+ {[%clk 0:00:14]}  Kxc6 {[%clk 0:01:04]} 33. Be7 {[%clk 0:00:14]}  Bd2 {[%clk 0:01:00]} 34. Bxf6 {[%clk 0:00:12]}  Bxc3 {[%clk 0:01:00]} 35. Be5 {[%clk 0:00:07]}  Kd7 {[%clk 0:01:00]} 36. a4 {[%clk 0:00:06]}  c5 {[%clk 0:00:59]} 37. Ke3 {[%clk 0:00:06]}  Kc6 {[%clk 0:00:49]} 38. h5 {[%clk 0:00:06]}  Kd7 {[%clk 0:00:44]} 39. Kd3 {[%clk 0:00:04]}  Bb4 {[%clk 0:00:41]} 40. dxc5 {[%clk 0:00:03]}  Bxc5 {[%clk 0:00:41]} 41. Bd4 {[%clk 0:00:03]}  Bb4 {[%clk 0:00:39]} 42. Bb6 {[%clk 0:00:02]}  Kc6 {[%clk 0:00:38]} 43. a5 {[%clk 0:00:02]}  Kb5 {[%clk 0:00:38]} 44. Kd4 {[%clk 0:00:03]}  Ba3 {[%clk 0:00:28]} 45. Kxd5 {[%clk 0:00:03]}  Bb2 {[%clk 0:00:28]} 46. Ke6 {[%clk 0:00:03]}  Kc6 {[%clk 0:00:26]} 47. f6 {[%clk 0:00:03]}  Bxf6 {[%clk 0:00:25]} 48. Kxf6 {[%clk 0:00:04]}  Kb5 {[%clk 0:00:25]} 49. Kg7 {[%clk 0:00:04]}  Ka6 {[%clk 0:00:26]} 50. Kxh7 {[%clk 0:00:04]}  Kb7 {[%clk 0:00:26]} 51. Kg7 {[%clk 0:00:05]}  Kc6 {[%clk 0:00:27]} 52. h6 {[%clk 0:00:06]}  Kb5 {[%clk 0:00:28]} 53. h7 {[%clk 0:00:07]}  Ka6 {[%clk 0:00:29]} 54. h8=Q {[%clk 0:00:08]}  Kb7 {[%clk 0:00:30]} 55. Qe8 {[%clk 0:00:07]}  Ka6 {[%clk 0:00:30]} 56. Qa8+ {[%clk 0:00:06]}  Kb5 {[%clk 0:00:30]} 57. Qc8 {[%clk 0:00:06]}  Ka4 {[%clk 0:00:30]} 58. Qc4+ {[%clk 0:00:06]}  Ka3 {[%clk 0:00:30]} 59. a6 {[%clk 0:00:05]}  Kb2 {[%clk 0:00:30]} 60. Bd4+ {[%clk 0:00:05]}  Kb1 {[%clk 0:00:31]} 61. Qb3+ {[%clk 0:00:04]}  Kc1 {[%clk 0:00:30]} 62. Be3# {[%clk 0:00:05]} 1-0


[Site "https://www.chess.com"]

[Event "Titled Tuesday Blitz November 14 Early 2023"]
[White "RodokininEV"]
[Black "Hoffmann, Asa"]
[BlackFideId "2001470"]
[WhiteElo "2526"]
[BlackElo "2387"]
[Result "1-0"]
[Round "6"]
[TimeControl "180+1"]
[Date "2023.11.14"]
[WhiteClock "0:00:45"]
[BlackClock "0:00:06"]
[Board "128"]

1. d4 {[%clk 0:03:00]}  Nf6 {[%clk 0:02:57]} 2. c4 {[%clk 0:02:59]}  c5 {[%clk 0:02:57]} 3. d5 {[%clk 0:02:58]}  e5 {[%clk 0:02:57]} 4. Nc3 {[%clk 0:02:56]}  d6 {[%clk 0:02:57]} 5. e4 {[%clk 0:02:56]}  Be7 {[%clk 0:02:57]} 6. Nge2 {[%clk 0:02:56]}  Nbd7 {[%clk 0:02:57]} 7. g3 {[%clk 0:02:56]}  O-O {[%clk 0:02:52]} 8. Bg2 {[%clk 0:02:57]}  Ne8 {[%clk 0:02:52]} 9. O-O {[%clk 0:02:56]}  a6 {[%clk 0:02:43]} 10. a4 {[%clk 0:02:56]}  b6 {[%clk 0:02:41]} 11. Be3 {[%clk 0:02:52]}  Rb8 {[%clk 0:02:40]} 12. Qd3 {[%clk 0:02:49]}  Nc7 {[%clk 0:02:39]} 13. f4 {[%clk 0:02:45]}  Bf6 {[%clk 0:02:39]} 14. b3 {[%clk 0:02:44]}  Qe7 {[%clk 0:02:38]} 15. Rae1 {[%clk 0:02:42]}  b5 {[%clk 0:02:33]} 16. axb5 {[%clk 0:02:41]}  axb5 {[%clk 0:02:33]} 17. cxb5 {[%clk 0:02:38]}  Nb6 {[%clk 0:02:32]} 18. fxe5 {[%clk 0:02:32]}  Bxe5 {[%clk 0:02:31]} 19. Bf4 {[%clk 0:02:29]}  Bd7 {[%clk 0:02:30]} 20. Rf2 {[%clk 0:02:22]}  Ra8 {[%clk 0:02:20]} 21. Ref1 {[%clk 0:02:19]}  Ra3 {[%clk 0:02:16]} 22. Rb1 {[%clk 0:02:05]}  Qe8 {[%clk 0:02:09]} 23. Bxe5 {[%clk 0:02:01]}  Qxe5 {[%clk 0:02:09]} 24. Nf4 {[%clk 0:01:57]}  g6 {[%clk 0:01:59]} 25. Bf1 {[%clk 0:01:48]}  Rfa8 {[%clk 0:01:51]} 26. Qe3 {[%clk 0:01:41]}  Qd4 {[%clk 0:01:43]} 27. Qxd4 {[%clk 0:01:31]}  cxd4 {[%clk 0:01:42]} 28. Na4 {[%clk 0:01:32]}  Nxa4 {[%clk 0:01:27]} 29. bxa4 {[%clk 0:01:33]}  R3xa4 {[%clk 0:01:09]} 30. Rc2 {[%clk 0:01:30]}  Ne8 {[%clk 0:01:01]} 31. b6 {[%clk 0:01:28]}  Rb8 {[%clk 0:00:57]} 32. b7 {[%clk 0:01:21]}  Ra7 {[%clk 0:00:54]} 33. Rcb2 {[%clk 0:01:22]}  Kg7 {[%clk 0:00:51]} 34. Bd3 {[%clk 0:01:20]}  Kf6 {[%clk 0:00:51]} 35. Ne2 {[%clk 0:01:16]}  Ke5 {[%clk 0:00:46]} 36. Rb4 {[%clk 0:01:16]}  f5 {[%clk 0:00:43]} 37. Nxd4 {[%clk 0:01:05]}  fxe4 {[%clk 0:00:40]} 38. Bxe4 {[%clk 0:01:06]}  Nf6 {[%clk 0:00:38]} 39. Bg2 {[%clk 0:01:03]}  Nxd5 {[%clk 0:00:34]} 40. Re1+ {[%clk 0:00:58]}  Kf6 {[%clk 0:00:31]} 41. Bxd5 {[%clk 0:00:57]}  Ra5 {[%clk 0:00:23]} 42. Nc6 {[%clk 0:00:55]}  Bxc6 {[%clk 0:00:19]} 43. Bxc6 {[%clk 0:00:56]}  Rc5 {[%clk 0:00:19]} 44. Bg2 {[%clk 0:00:55]}  d5 {[%clk 0:00:18]} 45. Ra1 {[%clk 0:00:52]}  Ke5 {[%clk 0:00:15]} 46. Ra8 {[%clk 0:00:49]}  Rc1+ {[%clk 0:00:14]} 47. Bf1 {[%clk 0:00:46]}  Rf8 {[%clk 0:00:06]} 48. b8=Q+ {[%clk 0:00:45]} 1-0


[Site "https://www.chess.com"]

[Event "Titled Tuesday Blitz November 14 Early 2023"]
[White "Ron_Weasley_Chess"]
[Black "Bettalli, Francesco"]
[BlackFideId "2816453"]
[WhiteElo "2400"]
[BlackElo "2525"]
[Result "0-1"]
[Round "6"]
[TimeControl "180+1"]
[Date "2023.11.14"]
[WhiteClock "0:00:00"]
[BlackClock "0:00:12"]
[Board "129"]

1. Nf3 {[%clk 0:03:00]}  e5 {[%clk 0:02:59]} 2. Nxe5 {[%clk 0:02:59]}  Nc6 {[%clk 0:02:59]} 3. Nf3 {[%clk 0:02:57]}  d5 {[%clk 0:02:59]} 4. g3 {[%clk 0:02:55]}  h5 {[%clk 0:02:59]} 5. Bg2 {[%clk 0:02:49]}  Be7 {[%clk 0:02:55]} 6. h4 {[%clk 0:02:47]}  Bg4 {[%clk 0:02:55]} 7. d4 {[%clk 0:02:45]}  Nf6 {[%clk 0:02:54]} 8. Nc3 {[%clk 0:02:36]}  Bb4 {[%clk 0:02:51]} 9. O-O {[%clk 0:02:35]}  Bxc3 {[%clk 0:02:51]} 10. bxc3 {[%clk 0:02:36]}  Ne4 {[%clk 0:02:51]} 11. Bb2 {[%clk 0:02:35]}  g5 {[%clk 0:02:47]} 12. Nxg5 {[%clk 0:02:31]}  Nxg5 {[%clk 0:02:48]} 13. hxg5 {[%clk 0:02:32]}  Qxg5 {[%clk 0:02:49]} 14. Qc1 {[%clk 0:02:22]}  Qe7 {[%clk 0:02:40]} 15. c4 {[%clk 0:01:57]}  dxc4 {[%clk 0:02:28]} 16. d5 {[%clk 0:01:57]}  Ne5 {[%clk 0:02:28]} 17. Qe3 {[%clk 0:01:16]}  f6 {[%clk 0:02:25]} 18. Rad1 {[%clk 0:01:05]}  Nf7 {[%clk 0:02:13]} 19. Bxf6 {[%clk 0:00:58]}  Qxe3 {[%clk 0:02:12]} 20. fxe3 {[%clk 0:00:59]}  Rh6 {[%clk 0:02:12]} 21. Rd4 {[%clk 0:00:56]}  Nd6 {[%clk 0:02:11]} 22. Bg7 {[%clk 0:00:50]}  Rg6 {[%clk 0:02:05]} 23. Rf8+ {[%clk 0:00:50]}  Kd7 {[%clk 0:02:05]} 24. Rxa8 {[%clk 0:00:50]}  Rxg7 {[%clk 0:02:05]} 25. e4 {[%clk 0:00:49]}  Bxe2 {[%clk 0:02:02]} 26. Bh3+ {[%clk 0:00:17]}  Ke7 {[%clk 0:02:01]} 27. e5 {[%clk 0:00:15]}  Nb5 {[%clk 0:02:00]} 28. Re4 {[%clk 0:00:12]}  Rxg3+ {[%clk 0:01:45]} 29. Kf2 {[%clk 0:00:12]}  Rxh3 {[%clk 0:01:45]} 30. Rxe2 {[%clk 0:00:11]}  Nc3 {[%clk 0:01:37]} 31. Re1 {[%clk 0:00:09]}  Nxd5 {[%clk 0:01:35]} 32. Rh8 {[%clk 0:00:10]}  Rh2+ {[%clk 0:00:42]} 33. Kg3 {[%clk 0:00:11]}  Rxc2 {[%clk 0:00:42]} 34. e6 {[%clk 0:00:11]}  Nf6 {[%clk 0:00:42]} 35. Rc8 {[%clk 0:00:07]}  Rc3+ {[%clk 0:00:38]} 36. Kh4 {[%clk 0:00:06]}  Ne8 {[%clk 0:00:34]} 37. Kxh5 {[%clk 0:00:06]}  Rd3 {[%clk 0:00:34]} 38. Rb8 {[%clk 0:00:06]}  b6 {[%clk 0:00:32]} 39. Rb7 {[%clk 0:00:06]}  a5 {[%clk 0:00:32]} 40. Rb8 {[%clk 0:00:02]}  Rd6 {[%clk 0:00:32]} 41. Kg5 {[%clk 0:00:02]}  Ng7 {[%clk 0:00:31]} 42. Rc8 {[%clk 0:00:02]}  Nxe6+ {[%clk 0:00:31]} 43. Kf5 {[%clk 0:00:02]}  Kd7 {[%clk 0:00:31]} 44. Rh8 {[%clk 0:00:03]}  Nd4+ {[%clk 0:00:31]} 45. Kf4 {[%clk 0:00:03]}  Rf6+ {[%clk 0:00:31]} 46. Kg5 {[%clk 0:00:02]}  Nf3+ {[%clk 0:00:29]} 47. Kxf6 {[%clk 0:00:02]}  Nxe1 {[%clk 0:00:30]} 48. Rh2 {[%clk 0:00:02]}  Nd3 {[%clk 0:00:30]} 49. Rc2 {[%clk 0:00:02]}  b5 {[%clk 0:00:30]} 50. a4 {[%clk 0:00:02]}  c6 {[%clk 0:00:30]} 51. Kf5 {[%clk 0:00:02]}  Kd6 {[%clk 0:00:31]} 52. Ke4 {[%clk 0:00:03]}  Nc5+ {[%clk 0:00:31]} 53. Kd4 {[%clk 0:00:02]}  Nxa4 {[%clk 0:00:32]} 54. Rh2 {[%clk 0:00:03]}  Nc5 {[%clk 0:00:32]} 55. Rh6+ {[%clk 0:00:03]}  Ne6+ {[%clk 0:00:33]} 56. Kc3 {[%clk 0:00:03]}  Kd5 {[%clk 0:00:33]} 57. Rh5+ {[%clk 0:00:03]}  Ke4 {[%clk 0:00:33]} 58. Rh6 {[%clk 0:00:04]}  Kd5 {[%clk 0:00:32]} 59. Rh5+ {[%clk 0:00:04]}  Kd6 {[%clk 0:00:32]} 60. Rh6 {[%clk 0:00:05]}  a4 {[%clk 0:00:33]} 61. Kb4 {[%clk 0:00:05]}  Kd7 {[%clk 0:00:31]} 62. Rh7+ {[%clk 0:00:05]}  Kd6 {[%clk 0:00:31]} 63. Rh6 {[%clk 0:00:06]}  Ke5 {[%clk 0:00:31]} 64. Rh5+ {[%clk 0:00:06]}  Kd4 {[%clk 0:00:31]} 65. Rh6 {[%clk 0:00:05]}  Kd5 {[%clk 0:00:25]} 66. Rh5+ {[%clk 0:00:05]}  Ke4 {[%clk 0:00:25]} 67. Rh6 {[%clk 0:00:05]}  Kf5 {[%clk 0:00:26]} 68. Rh5+ {[%clk 0:00:05]}  Ng5 {[%clk 0:00:27]} 69. Rh6 {[%clk 0:00:05]}  Ne6 {[%clk 0:00:22]} 70. Rh5+ {[%clk 0:00:05]}  Kf6 {[%clk 0:00:23]} 71. Rh6+ {[%clk 0:00:06]}  Kf7 {[%clk 0:00:23]} 72. Rh7+ {[%clk 0:00:05]}  Kg6 {[%clk 0:00:23]} 73. Re7 {[%clk 0:00:04]}  Kf6 {[%clk 0:00:22]} 74. Rh7 {[%clk 0:00:04]}  Nd4 {[%clk 0:00:17]} 75. Rh4 {[%clk 0:00:04]}  Ke5 {[%clk 0:00:17]} 76. Rh5+ {[%clk 0:00:04]}  Ke4 {[%clk 0:00:18]} 77. Rh6 {[%clk 0:00:04]}  Kd3 {[%clk 0:00:17]} 78. Rh3+ {[%clk 0:00:05]}  Kc2 {[%clk 0:00:17]} 79. Rh2+ {[%clk 0:00:06]}  Kc1 {[%clk 0:00:17]} 80. Rh1+ {[%clk 0:00:06]}  Kb2 {[%clk 0:00:18]} 81. Kc5 {[%clk 0:00:05]}  Nb3+ {[%clk 0:00:17]} 82. Kxc6 {[%clk 0:00:05]}  c3 {[%clk 0:00:17]} 83. Kxb5 {[%clk 0:00:06]}  a3 {[%clk 0:00:18]} 84. Rh2+ {[%clk 0:00:04]}  c2 {[%clk 0:00:17]} 85. Kb4 {[%clk 0:00:05]}  a2 {[%clk 0:00:18]} 86. Rh3 {[%clk 0:00:05]}  Nd2 {[%clk 0:00:11]} 87. Rh1 {[%clk 0:00:02]}  c1=Q {[%clk 0:00:11]} 88. Rxc1 {[%clk 0:00:00]}  Kxc1 {[%clk 0:00:12]} 0-1


[Site "https://www.chess.com"]

[Event "Titled Tuesday Blitz November 14 Early 2023"]
[White "LeoLV10"]
[Black "Skaric, Djuro"]
[BlackFideId "934569"]
[WhiteElo "2524"]
[BlackElo "2377"]
[Result "1-0"]
[Round "6"]
[TimeControl "180+1"]
[Date "2023.11.14"]
[WhiteClock "0:00:17"]
[BlackClock "0:00:53"]
[Board "131"]

1. e4 {[%clk 0:03:00]}  d6 {[%clk 0:03:00]} 2. d4 {[%clk 0:03:00]}  g6 {[%clk 0:03:01]} 3. f4 {[%clk 0:02:59]}  Bg7 {[%clk 0:03:00]} 4. Nc3 {[%clk 0:03:00]}  Nf6 {[%clk 0:03:00]} 5. Nf3 {[%clk 0:02:58]}  O-O {[%clk 0:02:59]} 6. Bd3 {[%clk 0:02:58]}  Nc6 {[%clk 0:02:50]} 7. O-O {[%clk 0:02:56]}  Bg4 {[%clk 0:02:50]} 8. Be3 {[%clk 0:02:53]}  e5 {[%clk 0:02:48]} 9. fxe5 {[%clk 0:02:48]}  dxe5 {[%clk 0:02:47]} 10. d5 {[%clk 0:02:47]}  Nd4 {[%clk 0:02:46]} 11. Be2 {[%clk 0:02:06]}  Nxe2+ {[%clk 0:02:43]} 12. Qxe2 {[%clk 0:02:07]}  Nh5 {[%clk 0:02:43]} 13. h3 {[%clk 0:02:04]}  Bd7 {[%clk 0:02:43]} 14. Qc4 {[%clk 0:01:54]}  h6 {[%clk 0:02:40]} 15. Rad1 {[%clk 0:01:53]}  Kh7 {[%clk 0:02:35]} 16. Bc5 {[%clk 0:01:49]}  Re8 {[%clk 0:02:30]} 17. Qb3 {[%clk 0:01:29]}  Nf4 {[%clk 0:02:16]} 18. Be3 {[%clk 0:01:21]}  g5 {[%clk 0:02:11]} 19. d6 {[%clk 0:01:18]}  Be6 {[%clk 0:02:09]} 20. Qxb7 {[%clk 0:01:14]}  cxd6 {[%clk 0:02:06]} 21. Qa6 {[%clk 0:01:10]}  h5 {[%clk 0:01:57]} 22. Qxd6 {[%clk 0:01:06]}  Qa5 {[%clk 0:01:51]} 23. Nxg5+ {[%clk 0:01:05]}  Kg6 {[%clk 0:01:49]} 24. Bxf4 {[%clk 0:00:51]}  Rad8 {[%clk 0:01:42]} 25. Qc6 {[%clk 0:00:40]}  Rxd1 {[%clk 0:01:40]} 26. Rxd1 {[%clk 0:00:37]}  Rc8 {[%clk 0:01:39]} 27. Qb7 {[%clk 0:00:33]}  Qc5+ {[%clk 0:01:35]} 28. Kh1 {[%clk 0:00:28]}  exf4 {[%clk 0:01:36]} 29. Nxe6 {[%clk 0:00:29]}  fxe6 {[%clk 0:01:34]} 30. Qd7 {[%clk 0:00:28]}  Rc6 {[%clk 0:01:30]} 31. Ne2 {[%clk 0:00:24]}  Qxc2 {[%clk 0:01:01]} 32. Nxf4+ {[%clk 0:00:23]}  Kh6 {[%clk 0:01:01]} 33. Rf1 {[%clk 0:00:21]}  Qxe4 {[%clk 0:00:55]} 34. Qf7 {[%clk 0:00:17]}  e5 {[%clk 0:00:53]} 35. Qxh5# {[%clk 0:00:17]} 1-0


[Site "https://www.chess.com"]

[Event "Titled Tuesday Blitz November 14 Early 2023"]
[White "MarijaKuznecova"]
[Black "Grossboss19"]
[WhiteElo "2373"]
[BlackElo "2511"]
[Result "1-0"]
[Round "6"]
[TimeControl "180+1"]
[Date "2023.11.14"]
[WhiteClock "0:00:04"]
[BlackClock "0:00:07"]
[Board "132"]

1. e4 {[%clk 0:02:54]}  c5 {[%clk 0:02:57]} 2. Nf3 {[%clk 0:02:53]}  d6 {[%clk 0:02:55]} 3. d4 {[%clk 0:02:52]}  cxd4 {[%clk 0:02:56]} 4. Nxd4 {[%clk 0:02:53]}  Nf6 {[%clk 0:02:57]} 5. Nc3 {[%clk 0:02:53]}  a6 {[%clk 0:02:58]} 6. Be3 {[%clk 0:02:53]}  Nc6 {[%clk 0:02:48]} 7. f3 {[%clk 0:02:31]}  e5 {[%clk 0:02:38]} 8. Nb3 {[%clk 0:02:27]}  Be7 {[%clk 0:02:25]} 9. Qd2 {[%clk 0:02:27]}  O-O {[%clk 0:02:10]} 10. O-O-O {[%clk 0:02:26]}  Be6 {[%clk 0:02:08]} 11. g4 {[%clk 0:02:21]}  Qc7 {[%clk 0:02:01]} 12. h4 {[%clk 0:02:21]}  b5 {[%clk 0:02:00]} 13. h5 {[%clk 0:02:20]}  h6 {[%clk 0:01:46]} 14. g5 {[%clk 0:02:17]}  hxg5 {[%clk 0:01:45]} 15. Bxg5 {[%clk 0:02:18]}  Nb4 {[%clk 0:01:36]} 16. Kb1 {[%clk 0:02:09]}  Rfd8 {[%clk 0:01:24]} 17. f4 {[%clk 0:01:32]}  d5 {[%clk 0:01:10]} 18. h6 {[%clk 0:00:54]}  dxe4 {[%clk 0:01:03]} 19. Qe1 {[%clk 0:00:42]}  Rxd1+ {[%clk 0:01:01]} 20. Qxd1 {[%clk 0:00:43]}  Rd8 {[%clk 0:00:53]} 21. Qe1 {[%clk 0:00:30]}  g6 {[%clk 0:00:42]} 22. a3 {[%clk 0:00:27]}  Bxb3 {[%clk 0:00:29]} 23. axb4 {[%clk 0:00:21]}  exf4 {[%clk 0:00:18]} 24. cxb3 {[%clk 0:00:16]}  e3 {[%clk 0:00:18]} 25. Qh4 {[%clk 0:00:12]}  Qc6 {[%clk 0:00:11]} 26. Be2 {[%clk 0:00:07]}  Nd5 {[%clk 0:00:09]} 27. Bxe7 {[%clk 0:00:06]}  Nxe7 {[%clk 0:00:08]} 28. Qxe7 {[%clk 0:00:05]}  Qxh1+ {[%clk 0:00:08]} 29. Ka2 {[%clk 0:00:05]}  Qa8 {[%clk 0:00:07]} 30. Qf6 {[%clk 0:00:04]}  a5 {[%clk 0:00:07]} 31. Qg7# {[%clk 0:00:04]} 1-0


[Site "https://www.chess.com"]

[Event "Titled Tuesday Blitz November 14 Early 2023"]
[White "Dmitrenko, Viktor"]
[Black "Rietze, Clemens, Dr."]
[WhiteFideId "14110270"]
[BlackFideId "24620351"]
[WhiteElo "2372"]
[BlackElo "2511"]
[Result "0-1"]
[Round "6"]
[TimeControl "180+1"]
[Date "2023.11.14"]
[WhiteClock "0:00:21"]
[BlackClock "0:02:01"]
[Board "133"]

1. e4 {[%clk 0:02:56]}  c5 {[%clk 0:03:00]} 2. Nf3 {[%clk 0:02:56]}  Nc6 {[%clk 0:03:00]} 3. Bb5 {[%clk 0:02:56]}  e6 {[%clk 0:03:00]} 4. O-O {[%clk 0:02:55]}  Nge7 {[%clk 0:02:59]} 5. Re1 {[%clk 0:02:55]}  Ng6 {[%clk 0:02:58]} 6. c3 {[%clk 0:02:33]}  d5 {[%clk 0:02:50]} 7. exd5 {[%clk 0:02:23]}  Qxd5 {[%clk 0:02:51]} 8. d4 {[%clk 0:02:22]}  cxd4 {[%clk 0:02:51]} 9. Nxd4 {[%clk 0:02:19]}  Bd7 {[%clk 0:02:43]} 10. Bxc6 {[%clk 0:01:33]}  bxc6 {[%clk 0:02:42]} 11. Nf3 {[%clk 0:01:25]}  Bd6 {[%clk 0:02:34]} 12. Nbd2 {[%clk 0:01:22]}  O-O {[%clk 0:02:31]} 13. Ne4 {[%clk 0:01:22]}  Be7 {[%clk 0:02:24]} 14. Qc2 {[%clk 0:00:48]}  Qh5 {[%clk 0:02:12]} 15. Ng3 {[%clk 0:00:47]}  Qa5 {[%clk 0:02:03]} 16. b4 {[%clk 0:00:43]}  Qc7 {[%clk 0:02:01]} 17. Nf5 {[%clk 0:00:21]}  exf5 {[%clk 0:02:01]} 0-1


[Site "https://www.chess.com"]

[Event "Titled Tuesday Blitz November 14 Early 2023"]
[White "EvgenyBurmakin"]
[Black "Shohat, Yotam"]
[BlackFideId "2813955"]
[WhiteElo "2356"]
[BlackElo "2509"]
[Result "1/2-1/2"]
[Round "6"]
[TimeControl "180+1"]
[Date "2023.11.14"]
[WhiteClock "0:00:27"]
[BlackClock "0:01:22"]
[Board "135"]

1. e4 {[%clk 0:03:00]}  c5 {[%clk 0:02:58]} 2. Nc3 {[%clk 0:03:00]}  Nc6 {[%clk 0:02:58]} 3. Bb5 {[%clk 0:03:00]}  Nd4 {[%clk 0:02:58]} 4. Bc4 {[%clk 0:03:00]}  g6 {[%clk 0:02:58]} 5. Nf3 {[%clk 0:03:00]}  Bg7 {[%clk 0:02:59]} 6. Nxd4 {[%clk 0:02:59]}  cxd4 {[%clk 0:03:00]} 7. Qf3 {[%clk 0:02:59]}  Nf6 {[%clk 0:02:59]} 8. e5 {[%clk 0:02:43]}  dxc3 {[%clk 0:03:00]} 9. exf6 {[%clk 0:02:42]}  cxd2+ {[%clk 0:02:59]} 10. Bxd2 {[%clk 0:02:43]}  Bxf6 {[%clk 0:02:59]} 11. O-O {[%clk 0:02:40]}  O-O {[%clk 0:02:57]} 12. Bh6 {[%clk 0:02:36]}  Bg7 {[%clk 0:02:56]} 13. Bxg7 {[%clk 0:02:35]}  Kxg7 {[%clk 0:02:57]} 14. Rfe1 {[%clk 0:02:32]}  e6 {[%clk 0:02:48]} 15. Rad1 {[%clk 0:02:28]}  d5 {[%clk 0:02:47]} 16. Bb3 {[%clk 0:02:24]}  Qf6 {[%clk 0:02:46]} 17. Qxf6+ {[%clk 0:02:11]}  Kxf6 {[%clk 0:02:47]} 18. c4 {[%clk 0:02:11]}  dxc4 {[%clk 0:02:47]} 19. Bxc4 {[%clk 0:02:12]}  b6 {[%clk 0:02:48]} 20. f4 {[%clk 0:02:02]}  Bb7 {[%clk 0:02:47]} 21. Rd7 {[%clk 0:02:01]}  Bc6 {[%clk 0:02:46]} 22. Rd6 {[%clk 0:01:53]}  Rac8 {[%clk 0:02:40]} 23. Bxe6 {[%clk 0:01:49]}  fxe6 {[%clk 0:02:31]} 24. Rexe6+ {[%clk 0:01:50]}  Kg7 {[%clk 0:02:31]} 25. Rxc6 {[%clk 0:01:50]}  Rxc6 {[%clk 0:02:32]} 26. Rxc6 {[%clk 0:01:50]}  Rxf4 {[%clk 0:02:33]} 27. Rc7+ {[%clk 0:01:47]}  Rf7 {[%clk 0:02:33]} 28. Rxf7+ {[%clk 0:01:11]}  Kxf7 {[%clk 0:02:33]} 29. Kf2 {[%clk 0:01:12]}  Ke6 {[%clk 0:02:34]} 30. Ke3 {[%clk 0:01:12]}  Ke5 {[%clk 0:02:32]} 31. h3 {[%clk 0:01:04]}  g5 {[%clk 0:02:27]} 32. g3 {[%clk 0:01:00]}  b5 {[%clk 0:02:21]} 33. a3 {[%clk 0:00:56]}  a5 {[%clk 0:02:15]} 34. b3 {[%clk 0:00:56]}  h5 {[%clk 0:02:09]} 35. Kd3 {[%clk 0:00:43]}  Kd5 {[%clk 0:01:52]} 36. Ke3 {[%clk 0:00:38]}  a4 {[%clk 0:01:33]} 37. bxa4 {[%clk 0:00:39]}  bxa4 {[%clk 0:01:33]} 38. Kd3 {[%clk 0:00:39]}  h4 {[%clk 0:01:23]} 39. g4 {[%clk 0:00:27]}  Ke5 {[%clk 0:01:21]} 40. Ke3 {[%clk 0:00:27]}  Kd5 {[%clk 0:01:21]} 41. Kd3 {[%clk 0:00:27]}  Ke5 {[%clk 0:01:22]} 42. Ke3 {[%clk 0:00:27]}  Kd5 {[%clk 0:01:22]} 43. Kd3 {[%clk 0:00:27]} 1/2-1/2


[Site "https://www.chess.com"]

[Event "Titled Tuesday Blitz November 14 Early 2023"]
[White "Degtiarev, Evgeny"]
[Black "Kubicka, Anna"]
[WhiteFideId "4149610"]
[BlackFideId "1152254"]
[WhiteElo "2355"]
[BlackElo "2506"]
[Result "1-0"]
[Round "6"]
[TimeControl "180+1"]
[Date "2023.11.14"]
[WhiteClock "0:00:24"]
[BlackClock "0:00:03"]
[Board "136"]

1. d4 {[%clk 0:03:00]}  Nf6 {[%clk 0:02:54]} 2. c4 {[%clk 0:02:59]}  c5 {[%clk 0:02:54]} 3. d5 {[%clk 0:02:59]}  e6 {[%clk 0:02:54]} 4. Nc3 {[%clk 0:02:59]}  exd5 {[%clk 0:02:55]} 5. cxd5 {[%clk 0:03:00]}  d6 {[%clk 0:02:56]} 6. Nf3 {[%clk 0:02:57]}  g6 {[%clk 0:02:56]} 7. g3 {[%clk 0:02:48]}  Bg7 {[%clk 0:02:56]} 8. Bg2 {[%clk 0:02:49]}  O-O {[%clk 0:02:56]} 9. O-O {[%clk 0:02:46]}  a6 {[%clk 0:02:57]} 10. a4 {[%clk 0:02:45]}  Re8 {[%clk 0:02:57]} 11. Nd2 {[%clk 0:02:34]}  Nbd7 {[%clk 0:02:51]} 12. h3 {[%clk 0:02:33]}  Rb8 {[%clk 0:02:50]} 13. Nc4 {[%clk 0:02:32]}  Ne5 {[%clk 0:02:40]} 14. Na3 {[%clk 0:02:32]}  Qc7 {[%clk 0:02:23]} 15. f4 {[%clk 0:02:28]}  Ned7 {[%clk 0:02:22]} 16. e4 {[%clk 0:02:28]}  c4 {[%clk 0:02:15]} 17. Be3 {[%clk 0:02:27]}  Nc5 {[%clk 0:02:12]} 18. e5 {[%clk 0:02:21]}  Nh5 {[%clk 0:01:51]} 19. Nxc4 {[%clk 0:01:44]}  Nxg3 {[%clk 0:01:49]} 20. exd6 {[%clk 0:01:23]}  Qd8 {[%clk 0:01:39]} 21. Bxc5 {[%clk 0:01:23]}  Nxf1 {[%clk 0:01:37]} 22. Qxf1 {[%clk 0:01:23]}  Bf5 {[%clk 0:01:32]} 23. Ne3 {[%clk 0:01:09]}  Bd7 {[%clk 0:01:23]} 24. a5 {[%clk 0:01:07]}  Rc8 {[%clk 0:01:18]} 25. Bb6 {[%clk 0:01:07]}  Qf6 {[%clk 0:01:02]} 26. Rd1 {[%clk 0:00:51]}  Qxd6 {[%clk 0:00:59]} 27. Ne4 {[%clk 0:00:49]}  Qb4 {[%clk 0:00:51]} 28. Ng5 {[%clk 0:00:38]}  Qxb2 {[%clk 0:00:30]} 29. d6 {[%clk 0:00:38]}  Rc3 {[%clk 0:00:20]} 30. Nd5 {[%clk 0:00:36]}  Rc2 {[%clk 0:00:17]} 31. Ne7+ {[%clk 0:00:33]}  Rxe7 {[%clk 0:00:13]} 32. dxe7 {[%clk 0:00:32]}  Bf6 {[%clk 0:00:03]} 33. Rxd7 {[%clk 0:00:27]}  Bxe7 {[%clk 0:00:04]} 34. Rxe7 {[%clk 0:00:25]}  Rc1 {[%clk 0:00:03]} 35. Re1 {[%clk 0:00:24]} 1-0


[Site "https://www.chess.com"]